[Event "Fagernes Chess GM-Swiss 2024"]
[Site "Fagernes"]
[Date "2024.03.25"]
[Round "2"]
[White "Krishnan, Ritvik"]
[Black "Evenshaug, Amadeus Hestvik"]
[Result "1/2-1/2"]
[ECO "B39"]
[WhiteElo "2277"]
[BlackElo "2035"]
[Annotator "RC"]
[PlyCount "188"]
[EventDate "2024.03.25"]
[EventType "swiss"]
[EventCountry "NOR"]
[SourceTitle "playchess.com"]
[Source "ChessBase"]
[SourceQuality "1"]
[TimeControl "40/6000+30:2400+30"]

1. e4 {[%emt 0:01:31]} c5 {[%emt 0:00:21]} 2. Nf3 {[%emt 0:00:08]} Nc6 {[%emt 0:00:21]} 3. d4 {[%emt 0:00:09]} cxd4 {[%emt 0:00:11]} 4. Nxd4 {[%emt 0:00:02]} g6 {[%emt 0:00:28]} 5. c4 {[%emt 0:00:06]} Bg7 {[%emt 0:00:20]} 6. Be3 {[%emt 0:00:18]} Nf6 {[%emt 0:00:14]} 7. Nc3 {[%emt 0:00:17]} Ng4 {[%emt 0:00:58]} 8. Qxg4 {[%emt 0:00:14]} Nxd4 {[%emt 0:00:09]} 9. Qd1 {[%emt 0:00:15]} Ne6 {[%emt 0:00:56]} 10. Rc1 {[%emt 0:02:08]} Qa5 {[%emt 0:00:26]} 11. Qd2 {[%emt 0:01:23]} b6 {[%emt 0:02:27]} 12. Bd3 {[%emt 0:04:36]} Bb7 {[%emt 0:04:36]} 13. O-O {[%emt 0:04:53]} g5 {[%emt 0:10:45]} 14. Rfd1 {[%emt 0:07:55]} d6 {[%emt 0:05:28]} 15. Bb1 {[%emt 0:03:53]} Rc8 {[%emt 0:07:27]} 16. b3 {[%emt 0:14:27]} h5 {[%emt 0:09:18]} 17. Qb2 {[%emt 0:06:09]} Bxc3 {[%emt 0:15:38]} 18. Rxc3 {[%emt 0:04:55]} Qe5 {[%emt 0:00:37]} 19. f3 {[%emt 0:16:34]} f6 {[%emt 0:11:53]} 20. Qd2 {[%emt 0:07:27]} Nf4 {[%emt 0:15:22]} 21. Kh1 {[%emt 0:03:21]} h4 {[%emt 0:03:05]} 22. Bd4 {[%emt 0:00:51]} Qa5 {[%emt 0:03:16]} 23. Qb2 {[%emt 0:01:39]} g4 {[%emt 0:10:02]} 24. fxg4 {[%emt 0:01:15]} Qg5 {[%emt 0:01:09]} 25. h3 {[%emt 0:03:18]} Ne6 {[%emt 0:02:14]} 26. Bg1 {[%emt 0:00:00]} Rg8 {[%emt 0:03:11]} 27. Rf3 {[%emt 0:00:17]} Qe5 {[%emt 0:00:43]} 28. Qe2 {[%emt 0:02:23]} Ng5 {[%emt 0:01:26]} 29. Rf5 {[%emt 0:01:24]} Qe6 {[%emt 0:00:12]} 30. Re1 {[%emt 0:01:00]} Rc7 {[%emt 0:01:24]} 31. a4 {[%emt 0:00:45]} Rg7 {[%emt 0:00:44]} 32. Bd3 {[%emt 0:01:32]} Nf7 {[%emt 0:00:25]} 33. a5 {[%emt 0:01:01]} bxa5 {[%emt 0:00:17]} 34. Rxa5 {[%emt 0:00:23]} a6 {[%emt 0:00:43]} 35. c5 {[%emt 0:01:25]} dxc5 {[%emt 0:00:06]} 36. Bxa6 {[%emt 0:00:33]} Bxa6 {[%emt 0:01:04]} 37. Rxa6 {[%emt 0:01:00]} Qxb3 {[%emt 0:00:24]} 38. Ra8+ {[%emt 0:01:27]} Kd7 {[%emt 0:00:21]} 39. Bh2 {[%emt 0:03:45]} e5 {[%emt 0:00:39]} 40. Qd2+ {[%emt 0:06:47]} Ke7 {[%emt 0:00:33]} 41. Rd1 {[%emt 0:42:20]} Qb7 {[%emt 0:14:18]} 42. Rd8 {[%emt 0:00:00]} c4 {[%emt 0:08:03]} 43. Rd5 {[%emt 0:00:00]} c3 {[%emt 0:03:50]} 44. Qa2 {[%emt 0:00:00]} Rg8 {[%emt 0:08:31]} 45. Qa3+ {[%emt 0:01:33]} Ke8 {[%emt 0:05:56]} 46. Ra5 {[%emt 0:03:33]} c2 {[%emt 0:01:32]} 47. Ra8+ {[%emt 0:00:29]} Rc8 {[%emt 0:01:02]} 48. Rxc8+ {[%emt 0:00:29]} Qxc8 {[%emt 0:00:06]} 49. Rc1 {[%emt 0:01:19]} Qc6 {[%emt 0:00:22]} 50. Qd3 {[%emt 0:00:41]} Qd6 {[%emt 0:01:16]} 51. Qxc2 {[%emt 0:00:37]} Kf8 {[%emt 0:00:38]} 52. Qf2 {[%emt 0:01:12]} Kg7 {[%emt 0:00:31]} 53. Qxh4 {[%emt 0:00:51]} Rb8 {[%emt 0:00:21]} 54. Qe1 {[%emt 0:01:13]} Rb2 {[%emt 0:00:22]} 55. Qf1 {[%emt 0:00:51]} Qd2 {[%emt 0:00:34]} 56. Bg3 {[%emt 0:01:04]} Qe2 {[%emt 0:00:16]} 57. Bh4 {[%emt 0:00:25]} Qxf1+ {[%emt 0:00:46]} 58. Rxf1 {[%emt 0:00:01]} Rb6 {[%emt 0:00:14]} 59. Kh2 {[%emt 0:00:35]} Kg6 {[%emt 0:00:07]} 60. Rf5 {[%emt 0:01:02]} Re6 {[%emt 0:00:26]} 61. Kg3 {[%emt 0:00:39]} Ra6 {[%emt 0:00:51]} 62. Rf3 {[%emt 0:00:25]} Rb6 {[%emt 0:00:38]} 63. Rd3 {[%emt 0:00:31]} Ra6 {[%emt 0:00:23]} 64. Kf3 {[%emt 0:00:30]} Rb6 {[%emt 0:00:31]} 65. Be1 {[%emt 0:00:37]} Ng5+ {[%emt 0:00:29]} 66. Ke3 {[%emt 0:00:02]} Rb1 {[%emt 0:00:18]} 67. Bh4 {[%emt 0:00:33]} Ne6 {[%emt 0:00:34]} 68. Rd6 {[%emt 0:00:29]} Rb3+ {[%emt 0:00:05]} 69. Ke2 {[%emt 0:01:01]} Kf7 {[%emt 0:00:27]} 70. Rd2 {[%emt 0:00:28]} Nd4+ {[%emt 0:01:29]} 71. Kf2 {[%emt 0:00:11]} Kg6 {[%emt 0:00:13]} 72. Bg3 {[%emt 0:00:25]} Rb4 {[%emt 0:00:23]} 73. Bh2 {[%emt 0:00:49]} Ne6 {[%emt 0:00:17]} 74. Re2 {[%emt 0:00:32]} Nd4 {[%emt 0:00:12]} 75. Re1 {[%emt 0:00:30]} Rb2+ {[%emt 0:00:15]} 76. Kg1 {[%emt 0:00:25]} Ne2+ {[%emt 0:00:43]} 77. Kf1 {[%emt 0:00:29]} Nd4 {[%emt 0:00:21]} 78. Bg1 {[%emt 0:00:34]} Ne6 {[%emt 0:01:14]} 79. Bf2 {[%emt 0:00:29]} Nf4 {[%emt 0:00:22]} 80. Bg3 {[%emt 0:00:35]} Ne6 {[%emt 0:01:04]} 81. h4 {[%emt 0:00:26]} Ra2 {[%emt 0:00:29]} 82. Re2 {[%emt 0:00:25]} Ra3 {[%emt 0:00:15]} 83. Kf2 {[%emt 0:00:18]} Nd4 {[%emt 0:00:21]} 84. Rb2 {[%emt 0:00:21]} Ne6 {[%emt 0:00:44]} 85. Rb6 {[%emt 0:00:55]} Nc5 {[%emt 0:00:34]} 86. Bh2 {[%emt 0:00:38]} Nxe4+ {[%emt 0:00:21]} 87. Ke2 {[%emt 0:00:09]} Nc3+ {[%emt 0:00:46]} 88. Ke1 {[%emt 0:00:36]} Nd5 {[%emt 0:00:31]} 89. Rd6 {[%emt 0:00:33]} Ra1+ {[%emt 0:00:27]} 90. Kd2 {[%emt 0:00:31]} Ra2+ {[%emt 0:00:06]} 91. Kc1 {[%emt 0:00:19]} Rxg2 {[%emt 0:00:41]} 92. Bxe5 {[%emt 0:00:22]} Rxg4 {[%emt 0:00:15]} 93. Rxd5 {[%emt 0:00:51]} fxe5 {[%emt 0:00:05]} 94. Rxe5 {[%emt 0:00:02]} Rxh4 {[%emt 0:00:07]} 1/2-1/2

[Event "Fagernes Chess GM-Swiss 2024"]
[Site "Fagernes"]
[Date "2024.03.25"]
[Round "2"]
[White "Lindh, Fredrik"]
[Black "Sachi Jain"]
[Result "1-0"]
[ECO "C17"]
[WhiteElo "2256"]
[BlackElo "1992"]
[Annotator "RC"]
[PlyCount "114"]
[EventDate "2024.03.25"]
[EventType "swiss"]
[EventCountry "NOR"]
[SourceTitle "playchess.com"]
[Source "ChessBase"]
[SourceQuality "1"]
[TimeControl "40/6000+30:2400+30"]

1. e4 {[%emt 0:00:46]} e6 {[%emt 0:01:03]} 2. d4 {[%emt 0:00:05]} d5 {[%emt 0:00:05]} 3. Nc3 {[%emt 0:00:06]} Bb4 {[%emt 0:00:19]} 4. e5 {[%emt 0:00:07]} c5 {[%emt 0:00:23]} 5. Bd2 {[%emt 0:02:11]} Ne7 {[%emt 0:03:04]} 6. Nb5 {[%emt 0:04:36]} Bxd2+ {[%emt 0:02:28]} 7. Qxd2 {[%emt 0:00:06]} O-O {[%emt 0:00:19]} 8. dxc5 {[%emt 0:02:42]} Nd7 {[%emt 0:01:37]} 9. Nf3 {[%emt 0:19:22]} Nxc5 {[%emt 0:05:12]} 10. Bd3 {[%emt 0:00:06]} Nxd3+ {[%emt 0:06:40]} 11. Qxd3 {[%emt 0:01:20]} Ng6 {[%emt 0:12:05]} 12. O-O {[%emt 0:15:12]} Bd7 {[%emt 0:07:24]} 13. Nbd4 {[%emt 0:02:49]} Qc7 {[%emt 0:04:14]} 14. Rfe1 {[%emt 0:00:47]} Rfc8 {[%emt 0:15:07]} 15. h4 {[%emt 0:04:39]} h6 {[%emt 0:09:05]} 16. h5 {[%emt 0:04:29]} Nf8 {[%emt 0:00:24]} 17. Nh2 {[%emt 0:05:42]} Ba4 {[%emt 0:03:40]} 18. c3 {[%emt 0:04:19]} Qe7 {[%emt 0:01:46]} 19. f4 {[%emt 0:04:42]} Bd7 {[%emt 0:03:09]} 20. Nhf3 {[%emt 0:10:45]} b5 {[%emt 0:04:07]} 21. a3 {[%emt 0:00:50]} a5 {[%emt 0:04:07]} 22. b4 {[%emt 0:00:58]} Qd8 {[%emt 0:01:45]} 23. Nb3 {[%emt 0:01:42]} Qb6+ {[%emt 0:03:39]} 24. Nfd4 {[%emt 0:01:54]} a4 {[%emt 0:01:31]} 25. Nc5 {[%emt 0:00:08]} Be8 {[%emt 0:00:18]} 26. Re3 {[%emt 0:14:17]} Nd7 {[%emt 0:01:43]} 27. Nxd7 {[%emt 0:00:46]} Bxd7 {[%emt 0:00:59]} 28. Rf1 {[%emt 0:00:59]} Rc4 {[%emt 0:00:56]} 29. Rff3 {[%emt 0:00:09]} Rac8 {[%emt 0:01:09]} 30. Qd1 {[%emt 0:00:29]} Qd8 {[%emt 0:01:44]} 31. Rg3 {[%emt 0:01:05]} R8c7 {[%emt 0:01:14]} 32. Qg4 {[%emt 0:01:54]} Qf8 {[%emt 0:00:16]} 33. Kh2 {[%emt 0:01:22]} Kh8 {[%emt 0:01:00]} 34. Qh4 {[%emt 0:01:39]} Rc8 {[%emt 0:01:23]} 35. Rgf3 {[%emt 0:00:58]} Qd8 {[%emt 0:05:53]} 36. Qh3 {[%emt 0:02:21]} Qb6 {[%emt 0:00:31]} 37. Qh4 {[%emt 0:00:27]} Qd8 {[%emt 0:00:34]} 38. Qxd8+ {[%emt 0:00:20]} Rxd8 {[%emt 0:00:12]} 39. g4 {[%emt 0:00:11]} Kh7 {[%emt 0:04:16]} 40. f5 {[%emt 0:01:07]} Kg8 {[%emt 0:03:26]} 41. Kg3 {[%emt 0:08:10]} Rb8 {[%emt 0:01:03]} 42. Kh4 {[%emt 0:05:49]} Rb6 {[%emt 0:01:02]} 43. f6 {[%emt 0:01:20]} Rb8 {[%emt 0:05:39]} 44. g5 {[%emt 0:07:11]} Rbc8 {[%emt 0:01:40]} 45. fxg7 {[%emt 0:00:24]} Kxg7 {[%emt 0:00:09]} 46. gxh6+ {[%emt 0:01:19]} Kxh6 {[%emt 0:00:02]} 47. Rf6+ {[%emt 0:00:45]} Kg7 {[%emt 0:00:33]} 48. Rg3+ {[%emt 0:00:41]} Kf8 {[%emt 0:00:17]} 49. h6 {[%emt 0:00:45]} Ke7 {[%emt 0:02:51]} 50. Rgf3 {[%emt 0:02:21]} Rf8 {[%emt 0:01:37]} 51. h7 {[%emt 0:00:30]} Rcc8 {[%emt 0:00:03]} 52. Kg5 {[%emt 0:00:09]} Rce8 {[%emt 0:02:30]} 53. Kh6 {[%emt 0:00:31]} Rh8 {[%emt 0:00:13]} 54. Rxf7+ {[%emt 0:00:25]} Kd8 {[%emt 0:00:04]} 55. Kg7 {[%emt 0:00:15]} Kc7 {[%emt 0:00:09]} 56. Rf8 {[%emt 0:01:10]} Ra8 {[%emt 0:00:08]} 57. R8f6 Bc8 1-0

[Event "Fagernes Chess GM-Swiss 2024"]
[Site "Fagernes"]
[Date "2024.03.25"]
[Round "2"]
[White "Brattgjerd, Isak Vinh"]
[Black "Kaewpitakkun, Pantham"]
[Result "1-0"]
[ECO "B52"]
[WhiteElo "2228"]
[BlackElo "1989"]
[Annotator "RC"]
[PlyCount "57"]
[EventDate "2024.03.25"]
[EventType "swiss"]
[EventCountry "NOR"]
[SourceTitle "playchess.com"]
[Source "ChessBase"]
[SourceQuality "1"]
[TimeControl "40/6000+30:2400+30"]

1. e4 {[%emt 0:01:56]} c5 {[%emt 0:00:07]} 2. Nf3 {[%emt 0:01:05]} d6 {[%emt 0:00:03]} 3. Bb5+ {[%emt 0:00:19]} Bd7 {[%emt 0:00:05]} 4. Bxd7+ {[%emt 0:00:05]} Qxd7 {[%emt 0:00:02]} 5. O-O {[%emt 0:00:09]} Nf6 {[%emt 0:01:18]} 6. Re1 {[%emt 0:00:11]} Nc6 {[%emt 0:01:45]} 7. h3 {[%emt 0:00:52]} a6 {[%emt 0:03:33]} 8. a4 {[%emt 0:01:25]} g6 {[%emt 0:01:00]} 9. c3 {[%emt 0:00:29]} Bg7 {[%emt 0:00:59]} 10. d4 {[%emt 0:00:17]} cxd4 {[%emt 0:02:23]} 11. cxd4 {[%emt 0:00:07]} O-O {[%emt 0:04:27]} 12. Nc3 {[%emt 0:00:09]} Rac8 {[%emt 0:03:32]} 13. Bg5 {[%emt 0:05:38]} e6 {[%emt 0:07:52]} 14. Qe2 {[%emt 0:07:34]} Na5 {[%emt 0:03:41]} 15. Rad1 {[%emt 0:03:30]} d5 {[%emt 0:05:25]} 16. Ne5 {[%emt 0:02:36]} Qd6 {[%emt 0:06:42]} 17. Bxf6 {[%emt 0:02:18]} Bxf6 {[%emt 0:00:15]} 18. exd5 {[%emt 0:01:06]} exd5 {[%emt 0:04:24]} 19. Qf3 {[%emt 0:01:37]} Rcd8 {[%emt 0:08:37]} 20. Nxd5 {[%emt 0:03:11]} Qxd5 {[%emt 0:00:41]} 21. Qxf6 {[%emt 0:00:07]} Qd6 {[%emt 0:00:46]} 22. Qh4 {[%emt 0:02:21]} Nc6 {[%emt 0:05:47]} 23. Nf3 {[%emt 0:04:34]} h5 {[%emt 0:22:29]} 24. Qg5 {[%emt 0:15:15]} Kg7 {[%emt 0:03:32]} 25. d5 {[%emt 0:15:17]} Nb4 {[%emt 0:04:44]} 26. Re7 {[%emt 0:03:06]} Rd7 {[%emt 0:07:50]} 27. Nd4 {[%emt 0:17:53]} Qxd5 {[%emt 0:02:49]} 28. Ne6+ {[%emt 0:00:16]} Qxe6 {[%emt 0:00:54]} 29. Rdxd7 {[%emt 0:00:31]} 1-0

[Event "Fagernes Chess GM-Swiss 2024"]
[Site "Fagernes"]
[Date "2024.03.25"]
[Round "2"]
[White "Skotheim, Andreas"]
[Black "Sidhant, Mohapatra"]
[Result "0-1"]
[ECO "B23"]
[WhiteElo "2214"]
[BlackElo "2379"]
[Annotator "RC"]
[PlyCount "108"]
[EventDate "2024.03.25"]
[EventType "swiss"]
[EventCountry "NOR"]
[SourceTitle "playchess.com"]
[Source "ChessBase"]
[SourceQuality "1"]
[TimeControl "40/6000+30:2400+30"]

1. e4 {[%emt 0:02:03]} c5 {[%emt 0:00:41]} 2. Nc3 {[%emt 0:00:27]} a6 {[%emt 0:02:05]} 3. g3 {[%emt 0:00:38]} b5 {[%emt 0:00:09]} 4. Bg2 {[%emt 0:00:36]} Bb7 {[%emt 0:00:11]} 5. d3 {[%emt 0:00:33]} e6 {[%emt 0:00:27]} 6. Nh3 {[%emt 0:00:31]} b4 {[%emt 0:00:36]} 7. Na4 {[%emt 0:05:13]} d5 {[%emt 0:04:17]} 8. O-O {[%emt 0:04:44]} Nf6 {[%emt 0:09:53]} 9. Bg5 {[%emt 0:19:31]} Qa5 {[%emt 0:00:30]} 10. b3 {[%emt 0:00:30]} Nbd7 {[%emt 0:00:30]} 11. exd5 {[%emt 0:00:30]} Bxd5 {[%emt 0:00:30]} 12. Nf4 {[%emt 0:00:30]} Bxg2 {[%emt 0:00:30]} 13. Kxg2 {[%emt 0:00:30]} Be7 {[%emt 0:00:30]} 14. Nh5 {[%emt 0:00:30]} O-O {[%emt 0:00:30]} 15. Nxf6+ {[%emt 0:00:30]} Bxf6 {[%emt 0:00:30]} 16. Bxf6 {[%emt 0:00:30]} Nxf6 {[%emt 0:00:30]} 17. Nb2 {[%emt 0:00:30]} Qc7 {[%emt 0:00:30]} 18. Nc4 {[%emt 0:00:30]} Rfd8 {[%emt 0:00:30]} 19. a3 {[%emt 0:00:30]} a5 {[%emt 0:00:30]} 20. axb4 {[%emt 0:00:30]} cxb4 {[%emt 0:00:30]} 21. Qf3 {[%emt 0:00:30]} Nd5 {[%emt 0:00:30]} 22. h4 {[%emt 0:00:30]} Nc3 {[%emt 0:00:30]} 23. Rfe1 {[%emt 0:00:30]} Nb5 {[%emt 0:00:30]} 24. Re4 {[%emt 0:00:30]} f5 {[%emt 0:00:30]} 25. Re5 {[%emt 0:00:30]} Nd4 {[%emt 0:00:30]} 26. Qd1 {[%emt 0:00:30]} Qc6+ {[%emt 0:00:30]} 27. Kh3 {[%emt 0:00:30]} Rd5 {[%emt 0:00:30]} 28. Rxa5 {[%emt 0:00:30]} Rdxa5 {[%emt 0:00:30]} 29. Rxa5 {[%emt 0:00:30]} Rxa5 {[%emt 0:00:30]} 30. Nxa5 {[%emt 0:00:30]} Qa8 {[%emt 0:00:30]} 31. Nc4 {[%emt 0:00:30]} Nxc2 {[%emt 0:00:30]} 32. Kh2 {[%emt 0:00:30]} Nd4 {[%emt 0:00:30]} 33. Nd2 {[%emt 0:00:30]} h6 {[%emt 0:00:30]} 34. Qc1 {[%emt 0:00:30]} Kh7 {[%emt 0:00:30]} 35. Qc4 {[%emt 0:00:30]} Qa1 {[%emt 0:00:30]} 36. Kg2 {[%emt 0:00:30]} Qc3 {[%emt 0:00:30]} 37. h5 {[%emt 0:00:30]} Kg8 {[%emt 0:00:30]} 38. Nb1 {[%emt 0:00:30]} Qxc4 {[%emt 0:00:30]} 39. bxc4 {[%emt 0:00:30]} Kf7 {[%emt 0:00:30]} 40. f4 {[%emt 0:00:30]} Ke7 {[%emt 0:00:30]} 41. Kf2 {[%emt 0:40:30]} Kd6 {[%emt 0:40:30]} 42. Ke3 {[%emt 0:00:30]} Kc5 {[%emt 0:00:30]} 43. Kd2 {[%emt 0:00:30]} b3 {[%emt 0:00:30]} 44. Ke3 {[%emt 0:00:30]} Kb4 {[%emt 0:00:30]} 45. Kd2 {[%emt 0:00:30]} Nc2 {[%emt 0:00:30]} 46. Nc3 {[%emt 0:00:30]} Ne3 {[%emt 0:00:30]} 47. Ne2 {[%emt 0:00:30]} b2 {[%emt 0:00:30]} 48. Nc3 {[%emt 0:00:30]} Kb3 {[%emt 0:00:30]} 49. Nb1 {[%emt 0:00:30]} Nc2 {[%emt 0:00:30]} 50. Nc3 {[%emt 0:00:30]} Na3 {[%emt 0:00:30]} 51. c5 {[%emt 0:00:30]} Nb5 {[%emt 0:00:30]} 52. Nb1 {[%emt 0:00:30]} Ka2 {[%emt 0:00:30]} 53. Kc2 {[%emt 0:00:30]} Nd4+ {[%emt 0:00:30]} 54. Kc3 {[%emt 0:00:30]} Kxb1 {[%emt 0:00:30]} 0-1

[Event "Fagernes Chess GM-Swiss 2024"]
[Site "Fagernes"]
[Date "2024.03.25"]
[Round "2"]
[White "Andersen, Morten"]
[Black "Makka, Ioulia"]
[Result "0-1"]
[ECO "E00"]
[WhiteElo "2178"]
[BlackElo "1983"]
[Annotator "RC"]
[PlyCount "86"]
[EventDate "2024.03.25"]
[EventType "swiss"]
[EventCountry "NOR"]
[SourceTitle "playchess.com"]
[Source "ChessBase"]
[SourceQuality "1"]
[TimeControl "40/6000+30:2400+30"]

1. d4 {[%emt 0:00:02]} Nf6 {[%emt 0:00:59]} 2. c4 {[%emt 0:01:50]} e6 {[%emt 0:00:07]} 3. g3 {[%emt 0:00:13]} Bb4+ {[%emt 0:00:32]} 4. Bd2 {[%emt 0:00:49]} Qe7 {[%emt 0:00:31]} 5. Bg2 {[%emt 0:03:09]} Bxd2+ {[%emt 0:02:10]} 6. Qxd2 {[%emt 0:07:37]} d6 {[%emt 0:03:34]} 7. e4 {[%emt 0:08:34]} e5 {[%emt 0:01:15]} 8. d5 {[%emt 0:02:11]} a5 {[%emt 0:00:46]} 9. Ne2 {[%emt 0:04:42]} Nbd7 {[%emt 0:00:52]} 10. Nbc3 {[%emt 0:01:14]} Nc5 {[%emt 0:02:40]} 11. O-O {[%emt 0:03:02]} O-O {[%emt 0:02:29]} 12. Rab1 {[%emt 0:08:09]} Bd7 {[%emt 0:04:36]} 13. Nc1 {[%emt 0:02:39]} Rfb8 {[%emt 0:05:10]} 14. Nd3 {[%emt 0:01:52]} Nxd3 {[%emt 0:16:26]} 15. Qxd3 {[%emt 0:00:07]} Qe8 {[%emt 0:04:57]} 16. Rfc1 {[%emt 0:05:09]} Qc8 {[%emt 0:06:20]} 17. f4 {[%emt 0:02:34]} Bh3 {[%emt 0:03:47]} 18. f5 {[%emt 0:03:00]} Bxg2 {[%emt 0:01:10]} 19. Kxg2 {[%emt 0:00:03]} Nd7 {[%emt 0:05:20]} 20. Qe3 {[%emt 0:03:28]} Nc5 {[%emt 0:05:41]} 21. Rf1 {[%emt 0:05:11]} f6 {[%emt 0:02:13]} 22. g4 {[%emt 0:05:01]} Qd8 {[%emt 0:03:51]} 23. Rf3 {[%emt 0:02:49]} Qe7 {[%emt 0:03:21]} 24. h4 {[%emt 0:08:06]} Kh8 {[%emt 0:03:22]} 25. g5 {[%emt 0:06:02]} Qf7 {[%emt 0:05:45]} 26. Nb5 {[%emt 0:05:08]} Rd8 {[%emt 0:01:49]} 27. Rg3 {[%emt 0:03:58]} c6 {[%emt 0:01:23]} 28. Nc3 {[%emt 0:01:32]} Qh5 {[%emt 0:04:15]} 29. Kh3 {[%emt 0:02:23]} Rg8 {[%emt 0:06:57]} 30. Rbg1 {[%emt 0:02:19]} g6 {[%emt 0:02:21]} 31. gxf6 {[%emt 0:05:01]} gxf5 {[%emt 0:00:50]} 32. Rg5 {[%emt 0:01:46]} f4 {[%emt 0:01:40]} 33. Rxh5 {[%emt 0:00:56]} fxe3 {[%emt 0:00:08]} 34. Re1 {[%emt 0:01:04]} Nd3 {[%emt 0:00:28]} 35. f7 {[%emt 0:00:47]} Rgf8 {[%emt 0:02:13]} 36. Rxe3 {[%emt 0:00:15]} Nf4+ {[%emt 0:00:29]} 37. Kg4 {[%emt 0:00:09]} Nxh5 {[%emt 0:00:33]} 38. Kxh5 {[%emt 0:00:06]} Rxf7 {[%emt 0:00:10]} 39. dxc6 {[%emt 0:00:32]} bxc6 {[%emt 0:00:20]} 40. Rd3 {[%emt 0:00:16]} Rf6 {[%emt 0:00:29]} 41. c5 {[%emt 0:41:40]} dxc5 {[%emt 0:40:58]} 42. Kg4 {[%emt 0:02:31]} Rg8+ {[%emt 0:00:42]} 43. Kh3 {[%emt 0:00:02]} Rf1 {[%emt 0:00:46]} 0-1

[Event "Fagernes Chess GM-Swiss 2024"]
[Site "Fagernes"]
[Date "2024.03.25"]
[Round "2"]
[White "Vijayakumar, Rishi"]
[Black "Okuno Okuno, Rion"]
[Result "1/2-1/2"]
[ECO "D38"]
[WhiteElo "2156"]
[BlackElo "1981"]
[Annotator "RC"]
[PlyCount "54"]
[EventDate "2024.03.25"]
[EventType "swiss"]
[EventCountry "NOR"]
[SourceTitle "playchess.com"]
[Source "ChessBase"]
[SourceQuality "1"]
[TimeControl "40/6000+30:2400+30"]

1. d4 {[%emt 0:00:07]} Nf6 {[%emt 0:00:05]} 2. c4 {[%emt 0:00:09]} e6 {[%emt 0:00:05]} 3. Nf3 {[%emt 0:00:02]} d5 {[%emt 0:00:08]} 4. Nc3 {[%emt 0:00:06]} Bb4 {[%emt 0:00:07]} 5. cxd5 {[%emt 0:00:15]} exd5 {[%emt 0:00:12]} 6. Bg5 {[%emt 0:00:18]} h6 {[%emt 0:00:59]} 7. Bh4 {[%emt 0:00:31]} O-O {[%emt 0:02:51]} 8. e3 {[%emt 0:01:28]} Bf5 {[%emt 0:02:19]} 9. Qb3 {[%emt 0:00:39]} Bxc3+ {[%emt 0:00:45]} 10. Qxc3 {[%emt 0:00:18]} Nbd7 {[%emt 0:01:49]} 11. Be2 {[%emt 0:00:56]} Ne4 {[%emt 0:22:09]} 12. Qa5 {[%emt 0:37:07]} Ndf6 {[%emt 0:02:21]} 13. Rc1 {[%emt 0:00:48]} c6 {[%emt 0:05:48]} 14. Qxd8 {[%emt 0:01:24]} Rfxd8 {[%emt 0:01:19]} 15. Bxf6 {[%emt 0:04:26]} Nxf6 {[%emt 0:01:25]} 16. Ne5 {[%emt 0:00:20]} Ne8 {[%emt 0:08:14]} 17. Bd3 {[%emt 0:07:25]} Bxd3 {[%emt 0:02:35]} 18. Nxd3 {[%emt 0:00:01]} Nd6 {[%emt 0:00:26]} 19. a4 {[%emt 0:02:25]} a5 {[%emt 0:09:57]} 20. f3 {[%emt 0:01:48]} Re8 {[%emt 0:06:58]} 21. Kf2 {[%emt 0:01:30]} Re7 {[%emt 0:04:55]} 22. Rhe1 {[%emt 0:02:35]} f6 {[%emt 0:01:57]} 23. Rc3 {[%emt 0:04:55]} Rae8 {[%emt 0:02:52]} 24. b3 {[%emt 0:01:23]} Nf5 {[%emt 0:02:26]} 25. Nf4 {[%emt 0:02:20]} g5 {[%emt 0:05:05]} 26. Nh5 {[%emt 0:00:13]} Kf7 {[%emt 0:00:36]} 27. Rd3 {[%emt 0:01:20]} Kg6 {[%emt 0:07:40]} 1/2-1/2